bitfinex/quotes_ETHUSD_20241204
["timestamp","ask_amount","ask_price","bid_price","bid_amount"]
[1733327614458,0.53574043,3822.1,3820.6,2.61738]
[1733327614659,0.53574043,3822.1,3822.0,2.61643]
[1733327614905,1.5725,3822.3,3821.2,1.6231]
[1733327615208,1.5725,3822.3,3822.2,2.61629]
[1733327615404,0.53599034,3822.1,3822.0,2.61643]
[1733327615562,1.5725,3822.3,3822.2,2.61629]
[1733327616303,2.10728705,3822.3,3822.2,2.61629]
[1733327617288,2.31801576,3822.3,3821.6,2.61664]
[1733327617460,2.31801576,3822.3,3821.2,1.6231]
[1733327617664,2.31801576,3822.3,3822.1,2.61633]
[1733327618061,1.7207,3822.2,3820.0,0.026]
[1733327618441,1.5207,3821.0,3819.5,2.61809]
[1733327618643,0.53452546,3819.9,3819.8,2.61793]
[1733327618855,1.5207,3821.0,3819.1,3.36836]
[1733327618856,0.24252472,3820.8,3819.9,2.61786]
[1733327619002,1.55342252,3821.0,3819.4,0.005]
[1733327619202,0.24250948,3820.9,3819.5,2.61809]
[1733327619402,0.51391246,3820.1,3819.7,2.618]
[1733327619656,0.51391246,3820.1,3820.0,2.6178]
[1733327619957,1.5207,3821.0,3820.8,2.61725]
[1733327620118,0.80371938,3821.5,3819.4,0.005]
[1733327620119,1.5693,3820.3,3819.4,0.005]
[1733327620322,0.63060563,3820.2,3819.8,2.61792]
[1733327620631,0.63060563,3820.1,3819.4,0.005]
[1733327620799,0.63060531,3820.0,3819.4,0.005]
[1733327621005,0.2425206,3819.9,3819.4,0.005]
[1733327621342,0.24256662,3819.8,3819.7,2.618]
[1733327621849,1.5693,3820.3,3820.1,2.61772]
[1733327622067,0.51260578,3819.8,3819.7,2.618]
[1733327622260,1.5693,3820.3,3820.2,2.61766]
[1733327622472,0.6307059,3820.3,3820.2,2.61766]
[1733327622966,0.24257919,3820.3,3820.2,2.61766]
[1733327623120,0.77554475,3820.3,3820.2,2.61766]
[1733327623473,1.16385584,3820.3,3820.2,2.61766]
[1733327623635,0.77554475,3820.3,3820.2,2.61766]
[1733327623958,3.63191805,3822.1,3822.0,5.52024042]
[1733327624193,3.16644,3822.0,3820.8,2.61724]
[1733327624318,0.55,3821.8,3820.6,2.61738]
[1733327624518,0.40627026,3821.7,3820.6,2.61738]
[1733327624717,0.40627026,3821.6,3819.6,0.0920246]
[1733327624959,0.40627026,3821.5,3820.7,2.61731]
[1733327625167,0.24270438,3821.4,3820.4,2.61747]
[1733327625463,0.51852006,3820.8,3820.5,2.61744]
[1733327625664,0.51852006,3820.8,3819.6,3.0920246]
[1733327625994,0.40662486,3820.7,3819.9,2.61785]
[1733327626164,0.42616136,3820.6,3819.6,0.0920246]
[1733327626372,0.42616136,3820.5,3820.0,2.61779]
[1733327626669,0.40662486,3820.4,3820.3,2.61759]
[1733327626966,0.1635778,3820.4,3820.3,2.61759]
[1733327627131,1.6484,3820.7,3820.5,2.61742]
[1733327627346,1.6484,3820.7,3820.0,2.61774]
[1733327627347,1.6484,3820.3,3820.2,2.61766]
[1733327627534,1.5746,3820.8,3819.9,2.6178]
[1733327627740,0.42619357,3820.7,3820.4,2.61752]
[1733327627985,0.68251527,3820.6,3820.5,2.61745]
[1733327628835,0.92564485,3820.6,3820.5,2.61745]
[1733327629437,0.68251527,3820.6,3820.2,2.6176]
[1733327629760,0.40671973,3820.5,3820.1,2.61768]
[1733327629964,0.40671973,3820.5,3819.7,2.618]
[1733327629965,0.42625623,3820.4,3820.0,2.61779]
[1733327630300,1.5764,3820.2,3819.4,0.005]
[1733327630506,1.5764,3820.2,3819.4,2.6232]
[1733327630507,0.42623894,3820.1,3819.4,2.6232]
[1733327630649,0.40670244,3820.0,3819.5,2.61813]
[1733327630851,0.42389467,3819.9,3819.4,0.005]
[1733327631155,0.40678968,3819.8,3819.4,0.005]
[1733327631379,1.509,3819.6,3819.4,0.005]
[1733327631699,0.0195365,3819.5,3819.4,0.005]
[1733327632497,0.42658629,3819.5,3819.4,0.005]
[1733327632650,0.49709278,3819.5,3819.4,0.005]
[1733327632992,1.41985445,3819.5,3819.4,0.005]
[1733327633195,2.99699095,3819.5,3819.4,0.005]
[1733327633401,3.51921982,3819.5,3819.4,0.005]
[1733327633554,3.51921982,3819.5,3818.5,2.61882]
[1733327633751,0.40546518,3819.2,3817.4,3.26025265]
[1733327633968,0.55286148,3819.1,3818.6,2.61875]
[1733327634266,0.55286148,3819.0,3818.3,0.005]
[1733327634451,0.55286148,3818.9,3818.5,2.61876]
[1733327634806,0.52919053,3818.6,3818.3,0.005]
[1733327634950,0.40546518,3818.4,3817.0,4.12921]
[1733327635154,0.79603278,3818.3,3817.9,2.61918]
[1733327635396,0.55249061,3818.2,3817.9,2.61922]
[1733327635549,0.55248931,3818.1,3817.9,2.61922]
[1733327635905,0.63183104,3818.0,3817.9,2.61922]
[1733327636193,2.42420635,3818.0,3817.9,2.61922]
[1733327636403,2.42420635,3818.0,3817.3,2.61963]
[1733327636553,2.42420635,3818.0,3817.8,2.6193]
[1733327636554,0.65093679,3817.9,3817.8,2.6193]
[1733327636754,0.63140029,3817.9,3817.8,2.6193]
[1733327637656,0.24284626,3817.9,3817.8,5.6193]
[1733327637966,0.40474378,3819.0,3818.8,2.61862]
[1733327638182,0.79462843,3818.9,3818.8,2.61862]
[1733327638390,0.24268948,3818.9,3818.8,4.15872]
[1733327638695,1.61,3819.9,3819.8,2.61793]
[1733327638900,0.24266097,3819.9,3819.8,2.61793]
[1733327639109,1.03718662,3819.9,3819.8,2.61793]
[1733327639400,0.24266137,3819.9,3819.8,2.61793]
[1733327639559,0.404436,3821.1,3819.9,2.61786]
[1733327639750,0.55181122,3821.0,3820.9,2.61718]
[1733327639955,0.3882499,3821.0,3820.9,2.61718]
[1733327640257,0.404436,3821.7,3820.3,2.61759]
[1733327640493,0.404436,3821.7,3820.2,3.0]
[1733327640494,1.18264151,3821.6,3821.4,2.61678]
[1733327640695,1.6074365,3821.8,3820.2,3.0]
[1733327640696,1.992336,3821.8,3820.9,2.61715]
[1733327640856,1.1826144,3821.7,3821.4,2.61684]
[1733327641206,0.53545616,3821.5,3821.4,2.61684]
[1733327641353,1.32984261,3821.5,3821.4,2.61684]
[1733327641709,1.32984261,3821.5,3819.8,4.5238]
[1733327641996,0.53545616,3821.5,3821.4,2.61684]
[1733327642203,1.5564,3822.0,3821.9,2.61649]
[1733327642355,2.35123558,3822.0,3821.9,2.61649]
[1733327642549,0.38850597,3822.0,3821.9,2.61649]
[1733327643004,0.53592751,3822.6,3822.5,2.61608]
[1733327643359,0.92445998,3822.6,3822.5,2.61608]
[1733327644183,0.92436931,3822.6,3822.5,2.61608]
[1733327644394,1.18523989,3822.6,3822.5,2.61608]
[1733327644556,0.14431496,3823.0,3822.5,2.61608]
[1733327644770,0.14431496,3823.0,3822.9,2.61581]
[1733327645157,0.14431496,3823.0,3822.9,5.61581]
[1733327645808,8.08864496,3823.1,3822.9,5.61581]
[1733327646100,2.08424325,3823.1,3823.0,3.0]
[1733327646410,0.77640325,3823.1,3823.0,3.0]
[1733327646963,0.77640325,3823.1,3823.0,4.607]
[1733327647188,0.89786325,3823.4,3823.3,5.61554]
[1733327648212,1.01950325,3823.7,3823.5,2.6154]
[1733327648497,1.01950325,3823.7,3823.6,3.0]
[1733327648706,1.01950325,3823.7,3822.9,2.43513994]
[1733327649000,1.01950325,3823.7,3823.5,2.6154]
[1733327649209,1.14165325,3823.8,3823.7,2.61526]
[1733327650075,2.57181325,3823.9,3823.7,2.61526]
[1733327650291,1.26435325,3823.9,3823.7,2.61526]
[1733327650762,1.26435325,3823.9,3823.8,3.0]
[1733327651276,3.33,3824.2,3824.1,5.61499]
[1733327651277,3.25e-06,3824.2,3824.1,5.61499]
[1733327651809,3.25e-06,3824.2,3824.1,7.14659]
[1733327653203,3.25e-06,3824.2,3824.1,7.24659]
[1733327653710,8.6e-06,3825.0,3824.9,7.15414]
[1733327654598,8.6e-06,3825.0,3824.9,7.25414]
[1733327654797,8.6e-06,3825.0,3824.9,7.80414]
[1733327655440,1.6478,3827.3,3827.2,2.61287]
[1733327655644,2.16889141,3827.3,3826.2,4.22162]
[1733327655940,2.16889141,3827.3,3827.1,2.61292]
[1733327656152,2.16889141,3827.3,3826.8,2.61311]
[1733327656455,0.23642564,3827.2,3825.6,2.61395]
[1733327656598,1.5416,3827.1,3825.7,2.61387]
[1733327656797,0.55,3826.8,3825.4,2.61406]
[1733327657109,0.55,3826.5,3825.1,2.61429]
[1733327657310,0.55,3826.3,3824.7,1.6293]
[1733327657546,0.21691365,3826.4,3826.0,2.61365]
[1733327657843,0.21691365,3826.4,3824.9,2.61444]
[1733327657996,0.0195365,3826.3,3825.2,2.61424]
[1733327658198,0.5695365,3826.3,3824.8,3.0]
[1733327658421,0.51199539,3826.1,3825.0,2.61432]
[1733327658725,2.1432365,3826.0,3825.1,2.61428]
[1733327658896,0.26552319,3825.9,3824.2,1.89270661]
[1733327659098,0.5695365,3825.8,3824.7,2.61457]
[1733327659297,1.5737,3825.5,3823.3,1.6283]
[1733327659551,1.5737,3824.7,3822.8,4.24416]
[1733327659698,0.5695365,3824.6,3822.8,4.24416]
[1733327659898,0.26551274,3824.5,3823.4,2.61546]
[1733327660154,0.5695365,3824.4,3822.2,1.6217]
[1733327660310,0.5695365,3824.4,3823.2,2.61556]
[1733327660505,0.5695365,3824.4,3823.3,2.6155]
[1733327660710,1.5286,3824.3,3822.5,5.23216]
[1733327660920,0.80590142,3824.2,3823.1,2.61565]
[1733327661140,0.80590142,3824.2,3822.5,2.61602]
[1733327661342,0.80590142,3824.2,3822.7,2.6159]
[1733327661546,1.5286,3823.3,3822.8,2.61584]
[1733327661900,0.0195365,3823.2,3822.8,2.61584]
[1733327662144,0.20604976,3823.2,3822.9,2.6158]
[1733327662453,1.5286,3823.3,3822.9,2.6158]
[1733327662608,1.5286,3823.3,3822.0,2.61643]
[1733327662969,1.5537,3823.9,3823.8,2.61519]
[1733327663241,1.5537,3824.5,3824.2,2.61492]
[1733327663441,1.5537,3824.5,3823.8,2.61519]
[1733327663442,1.5537,3824.5,3824.3,2.61484]
[1733327663616,1.5537,3824.5,3823.1,3.0]
[1733327663818,1.5537,3824.5,3823.4,2.61547]
[1733327664028,0.51178644,3824.4,3824.3,2.61485]
[1733327664637,1.5537,3825.0,3824.3,2.61485]
[1733327664852,1.5537,3825.0,3824.3,2.6148]
[1733327665013,0.0195365,3824.9,3823.5,3.0]
[1733327665348,0.52761488,3824.4,3824.2,2.61491]
[1733327665647,0.52761488,3824.4,3823.3,3.0]
[1733327665648,0.52761488,3824.4,3824.3,2.61485]
[1733327666139,0.52761488,3824.4,3824.0,2.61499]
[1733327666505,0.52761488,3824.4,3824.1,2.61494]
[1733327666706,0.52761488,3824.4,3823.3,3.0]
[1733327666911,0.52761488,3824.4,3822.8,3.0]
[1733327667105,0.52761488,3824.4,3822.7,0.25886876]
[1733327667106,0.52761488,3824.4,3824.1,2.61493]
[1733327667521,0.52761488,3824.4,3823.9,2.61512]
[1733327667940,0.52761488,3824.4,3823.3,3.0]
[1733327668111,0.52761488,3824.4,3824.1,2.61496]
[1733327668650,0.52761488,3824.4,3823.9,2.61512]
[1733327668833,0.52761488,3824.4,3824.1,2.61498]
[1733327669033,0.52761488,3824.4,3823.9,3.0]
[1733327669228,0.52761488,3824.4,3823.9,2.61507]
[1733327669421,0.52761488,3824.4,3824.0,2.61505]
[1733327669621,0.24233059,3824.3,3823.6,3.0]
[1733327669921,0.52761488,3824.4,3824.3,2.61485]
[1733327670336,0.80292117,3825.2,3825.0,2.61433]
[1733327670657,0.80292117,3825.2,3824.7,2.61454]
[1733327670808,0.53982769,3825.1,3823.9,3.0]
[1733327671318,0.48480225,3825.0,3824.2,2.61492]
[1733327671524,1.652,3824.8,3824.2,2.61492]
[1733327671843,0.24239929,3824.7,3824.0,3.0]
[1733327672052,1.652,3824.8,3824.7,2.61458]
[1733327672950,2.16255085,3824.8,3824.7,2.61458]
[1733327673561,0.80292117,3825.2,3825.1,2.61431]
[1733327673722,0.80292117,3825.2,3824.4,2.61478]
[1733327673723,0.51776601,3825.1,3824.4,2.61478]
[1733327674052,1.5089,3824.9,3822.7,1.6249]
[1733327674255,1.5089,3824.7,3823.4,2.6154]
[1733327674557,1.84627569,3824.6,3822.8,2.61588]
[1733327674729,1.42745234,3824.5,3822.8,2.61588]
[1733327674944,1.21061057,3824.4,3824.1,2.61498]
[1733327675158,0.875093,3824.3,3824.2,2.61492]
[1733327675494,0.24308255,3824.3,3824.2,2.61492]
[1733327675635,0.79585593,3824.3,3824.2,2.02670572]
[1733327675837,0.79585593,3824.3,3823.0,2.61568]
[1733327675838,1.03922532,3824.3,3823.8,2.61519]
[1733327676177,0.55,3824.0,3822.4,0.02]
[1733327676379,0.55,3823.7,3822.4,0.02]
[1733327676572,0.55,3823.5,3822.4,2.63609]
[1733327676777,0.55,3823.3,3822.4,2.63609]
[1733327676931,0.87590076,3823.2,3822.4,0.02]
[1733327677132,0.87590076,3823.1,3822.4,0.02]
[1733327677375,0.87590076,3823.0,3822.5,2.61606]
[1733327677546,1.6601,3822.8,3822.4,0.02]
[1733327677736,0.48645082,3822.7,3822.4,0.02]
[1733327677932,0.24308255,3822.6,3822.4,0.02]
[1733327678244,0.0195365,3822.8,3822.4,0.02]
[1733327678432,0.51793525,3822.8,3822.6,2.616]
[1733327678628,0.51793525,3822.8,3822.7,2.61595]
[1733327679645,1.6601,3823.3,3822.4,0.02]
[1733327679978,0.24311487,3823.2,3822.9,2.61576]
[1733327680182,0.24311736,3823.1,3822.4,0.02]
[1733327680469,0.24311736,3823.0,3822.8,2.61587]
[1733327680646,0.52436826,3823.1,3822.8,2.61587]
[1733327681671,0.52436826,3823.1,3822.7,3.0]
[1733327681872,0.24303917,3823.0,3822.7,2.61594]
[1733327682073,0.52436826,3823.1,3822.4,5.63611]
[1733327682289,0.52436826,3823.1,3822.8,2.61581]
[1733327682646,0.52436826,3823.1,3822.4,5.63611]
[1733327682647,0.52436826,3823.1,3822.6,2.61601]
[1733327682850,0.24300467,3823.0,3822.7,2.61594]
[1733327683075,0.52436826,3823.1,3822.6,3.0]
[1733327683289,0.74476874,3823.1,3822.6,3.0]
[1733327683470,0.24300599,3823.0,3822.6,3.0]
[1733327683650,0.0195365,3823.0,3822.4,0.02]
[1733327683858,0.24300783,3822.9,3822.4,3.02]
[1733327684054,0.74476874,3823.1,3822.4,0.02]
[1733327684055,2.0995,3822.7,3822.4,0.02]
[1733327684310,0.55,3822.5,3822.4,0.02]
[1733327684458,0.79300783,3822.5,3822.4,0.02]
[1733327684656,1.58857733,3822.5,3822.4,0.02]
[1733327684961,3.52708748,3822.5,3822.4,0.02]
[1733327685597,2.0995,3822.5,3822.4,0.02]
[1733327685952,2.99365854,3822.5,3822.4,0.02]
[1733327686151,3.11803276,3822.5,3822.4,0.02]
[1733327686375,2.87486691,3822.5,3822.4,2.63615]
[1733327686580,1.32536691,3822.5,3822.4,2.63615]
[1733327687687,0.63223121,3822.5,3822.4,5.63615]
[1733327687848,3.96223121,3822.5,3822.4,5.63615]
[1733327689291,3.33,3822.5,3822.4,5.63615]
[1733327689594,3.96334656,3822.5,3822.4,5.63615]
[1733327690429,3.96334656,3822.5,3819.2,1.509]
[1733327690430,0.55,3821.7,3819.2,1.509]
[1733327690642,1.94150734,3821.3,3819.5,2.61814]
[1733327690821,0.40610734,3820.9,3820.8,2.61722]
[1733327691004,1.04049584,3820.9,3820.8,2.61725]
[1733327691191,0.79681525,3820.9,3819.7,2.618]
[1733327691393,0.79681525,3820.8,3820.6,2.61734]
[1733327691599,0.79681525,3820.7,3820.6,2.61734]
[1733327691823,0.79681525,3820.7,3820.1,2.61767]
[1733327692129,1.42988862,3820.6,3820.2,2.6176]
[1733327692434,0.87680105,3820.5,3820.4,2.61752]
[1733327692740,1.03925808,3820.5,3820.4,2.61752]
[1733327692892,0.52431459,3820.9,3819.9,3.0]
[1733327693098,0.40525294,3820.8,3820.7,2.6173]
[1733327693404,0.79574518,3820.8,3820.7,2.6173]
[1733327693802,0.79574518,3820.8,3820.7,5.6173]
[1733327693803,0.63219634,3820.8,3820.7,5.6173]
[1733327694017,0.87534808,3820.8,3820.7,5.6173]
[1733327694594,0.24315244,3820.8,3820.7,5.6173]
[1733327694834,0.24315244,3820.8,3820.7,6.30718504]
[1733327695004,0.40479322,3821.6,3821.1,2.61702]
[1733327695205,0.79497828,3821.5,3821.4,2.61679]
[1733327695402,1.16293675,3821.5,3821.4,2.61679]
[1733327695611,1.32645783,3821.5,3821.3,2.6169]
[1733327695828,0.24286806,3821.4,3821.3,2.6169]
[1733327696040,0.63139503,3821.4,3821.3,2.61691]
[1733327696342,0.53147979,3821.5,3821.3,2.61691]
[1733327696506,0.53147979,3821.5,3821.4,2.61684]
[1733327696704,0.77428063,3821.5,3821.4,2.61684]
[1733327697400,0.53147979,3821.5,3821.4,2.61684]
[1733327697605,0.24280984,3822.1,3822.0,2.61643]
[1733327697922,0.52593591,3822.3,3822.2,2.61629]
[1733327699244,0.52593591,3822.3,3821.7,3.0]
[1733327699400,0.52593591,3822.3,3822.2,2.61629]
[1733327700540,1.5208,3823.3,3822.4,7.13665]
[1733327700746,1.5208,3823.3,3822.4,8.08833504]
[1733327701039,0.51812902,3823.1,3822.4,6.56783504]
[1733327701246,0.51812902,3823.1,3822.4,2.61615]
[1733327701452,0.51812902,3823.1,3821.2,2.61694]
[1733327701453,0.51812902,3823.1,3822.0,3.0]
[1733327701752,0.51812902,3823.1,3822.0,2.61637]
[1733327701896,0.0195365,3822.4,3821.7,3.0]
[1733327702240,0.51812902,3823.1,3821.7,3.0]
[1733327702540,1.5208,3823.3,3822.4,2.61615]
[1733327703342,10.76216951,3822.5,3822.4,2.61615]
[1733327703656,10.76216657,3822.5,3822.4,2.61615]
[1733327703937,10.76216601,3822.5,3822.4,2.61615]
[1733327704096,10.5188547,3822.5,3822.4,2.61615]
[1733327704299,10.7622415,3822.5,3822.4,2.61615]
[1733327704724,9.99,3822.5,3822.4,5.61615]
[1733327704949,9.99,3822.5,3822.4,6.439396]
[1733327705298,7.37392,3822.5,3822.4,6.439396]
[1733327705743,4.75784,3822.5,3822.4,6.439396]
[1733327706542,4.75784,3822.5,3822.4,5.61615]
[1733327706838,0.55,3822.4,3821.1,1.6116]
[1733327707061,2.1434,3822.2,3821.3,2.61686]
[1733327707272,0.65294126,3822.1,3821.3,2.61686]
[1733327707402,1.18340476,3822.0,3821.6,2.6167]
[1733327707603,0.63340476,3821.9,3821.3,2.61684]
[1733327707844,0.6334472,3821.8,3821.4,2.61684]
[1733327708008,0.51611586,3821.7,3820.5,4.6116]
[1733327708343,0.51611586,3821.7,3820.9,3.0]
[1733327708344,0.63346863,3821.6,3820.9,3.0]
[1733327708515,0.26312851,3821.5,3820.6,2.61736]
[1733327708760,2.75456229,3821.4,3820.1,2.61766]
[1733327709103,0.55,3821.2,3819.6,1.5224]
[1733327709249,0.55,3821.2,3819.8,2.61793]
[1733327709250,0.63346007,3821.1,3819.8,2.61793]
[1733327709452,0.24359201,3821.0,3819.8,2.61793]
[1733327709675,0.27740988,3821.3,3820.7,2.61732]
[1733327709987,0.6335346,3821.2,3820.0,3.0]
[1733327710146,0.53244269,3820.8,3820.7,2.61732]
[1733327710549,0.7761174,3820.8,3820.7,2.61732]
[1733327711144,0.7761174,3820.8,3820.4,3.0]
[1733327711351,0.24367471,3820.7,3820.6,2.61735]
[1733327712692,0.40569852,3821.7,3821.5,2.61675]
[1733327712903,1.6169,3821.5,3819.7,2.61795]
[1733327713054,1.6169,3821.5,3818.7,0.2]
[1733327713055,1.6169,3821.3,3819.3,1.5032]
[1733327713259,1.5457,3821.1,3819.7,2.61795]
[1733327713455,2.61726,3820.8,3818.8,1.631]
[1733327713655,1.95139852,3820.6,3819.4,2.6182]
[1733327713890,0.53443039,3819.8,3819.4,2.6182]
[1733327714053,0.2436786,3819.7,3819.4,2.6182]
[1733327714256,0.53443039,3819.8,3819.7,2.618]
[1733327714610,0.0195365,3820.9,3819.4,2.61821]
[1733327714774,0.24358484,3820.5,3820.4,2.61752]
[1733327715103,0.63332509,3820.5,3819.9,2.61784]
[1733327715253,0.26312134,3820.4,3819.9,2.61784]
[1733327715457,0.24358484,3820.3,3819.9,3.0]
[1733327715655,0.24358484,3820.2,3819.9,3.0]
[1733327715878,0.52427753,3820.5,3819.9,0.561791]
[1733327716090,0.24351001,3820.4,3820.2,2.61762]
[1733327716392,0.52427753,3820.5,3820.2,2.61762]
[1733327716611,0.52427753,3820.5,3819.9,3.0]
[1733327716911,0.52427753,3820.5,3820.1,2.61767]
[1733327717055,0.26300241,3820.4,3819.9,3.0]
[1733327717261,0.24346591,3820.3,3819.9,3.0]
[1733327717503,0.52427753,3820.5,3819.9,2.61786]
[1733327717797,0.26299103,3820.4,3819.7,2.61797]
[1733327718005,0.24345453,3820.3,3818.8,1.631]
[1733327718209,0.24345825,3820.2,3819.3,0.2]
[1733327718499,0.5179975,3820.0,3819.5,3.0]
[1733327718669,0.5179975,3820.0,3819.3,3.0]
[1733327718867,0.5179975,3820.0,3819.3,5.61826]
[1733327719412,0.5179975,3820.0,3817.1,2.88113]
[1733327719413,0.5179975,3820.0,3818.9,0.2]
[1733327719572,0.55,3819.5,3817.6,0.1]
[1733327719770,0.55,3819.0,3817.6,2.71942]
[1733327720086,0.80406196,3819.7,3817.6,0.1]
[1733327720087,0.55,3818.8,3817.6,0.1]
[1733327720396,0.52058092,3817.8,3817.3,2.61963]
[1733327720572,0.52058092,3817.8,3817.4,2.61954]
[1733327720775,0.52058092,3817.8,3817.3,0.2]
[1733327721083,2.10678092,3817.8,3816.8,0.85]
[1733327721259,2.10678092,3817.8,3817.2,0.1]
[1733327721455,2.10678092,3817.8,3816.9,0.2]
[1733327721658,2.10678092,3817.8,3817.0,0.1]
[1733327721893,2.10678092,3817.8,3817.4,2.61958]
[1733327722098,2.10678092,3817.8,3817.2,2.71971]
[1733327722461,2.10678092,3817.8,3817.3,2.61965]
[1733327722907,2.10678092,3817.8,3817.4,2.61954]
[1733327724098,2.10678092,3817.8,3816.9,3.0]
[1733327724313,2.10678092,3817.8,3816.8,0.75]
[1733327724662,2.10678092,3817.8,3816.9,2.61991]
[1733327724858,2.10678092,3817.8,3817.0,3.0]
[1733327725097,2.10678092,3817.8,3817.0,5.61985]
[1733327725610,2.10678092,3817.8,3817.2,3.0]
[1733327725765,2.86745901,3817.8,3816.8,0.75]
[1733327727380,2.86745901,3817.8,3816.8,3.36997]
[1733327727589,2.86745901,3817.8,3816.8,0.75]
[1733327727919,1.98588092,3817.8,3817.3,2.61963]
[1733327728281,0.39968092,3817.8,3817.2,0.1]
[1733327728590,0.39968092,3817.8,3817.5,2.61947]
[1733327728795,0.39968092,3817.8,3817.7,2.62437]
[1733327729313,1.6166,3818.7,3817.7,5.82437]
[1733327729516,1.6166,3819.1,3818.5,2.6188]
[1733327729692,0.24167625,3819.5,3818.2,0.2]
[1733327729896,1.6166,3819.6,3818.7,2.61864]
[1733327730093,0.2416987,3819.5,3818.8,2.61859]
[1733327730383,0.2416987,3819.4,3819.1,2.61841]
[1733327730734,0.2416987,3819.4,3818.7,2.61869]
[1733327730735,0.16362305,3820.2,3819.5,0.3]
[1733327730878,0.4031087,3821.0,3819.2,4.5279]
[1733327730879,0.53642133,3821.0,3820.9,5.71718]
[1733327731081,1.9241087,3821.6,3821.0,0.1]
[1733327731082,0.24168795,3821.5,3821.0,0.1]
[1733327731307,0.77351778,3821.9,3821.0,0.1]
[1733327731308,0.38681705,3821.9,3821.5,2.61677]
[1733327731522,1.521,3822.1,3821.5,2.61677]
[1733327731694,0.19077007,3822.1,3821.8,2.61655]
[1733327731895,1.90770073,3822.6,3821.5,0.1]
[1733327731896,0.24177614,3822.4,3821.5,2.71676]
[1733327732097,1.521,3822.6,3821.5,2.71676]
[1733327732098,0.5294555,3821.9,3821.7,2.61662]
[1733327732302,0.5294555,3821.9,3821.8,3.2]
[1733327732882,0.803384,3823.1,3822.3,2.61621]
[1733327733311,0.803384,3823.1,3822.3,2.91621]
[1733327733492,0.53607308,3822.6,3822.3,2.91621]
[1733327734581,0.803384,3823.1,3822.4,3.0]
[1733327734821,0.803384,3823.1,3822.4,3.591621]
[1733327735392,9.45e-06,3822.5,3822.4,5.232721]
[1733327735826,9.45e-06,3822.5,3822.4,5.2588744]
[1733327736010,0.52089873,3823.8,3823.7,2.71526]
[1733327736184,0.52089873,3823.8,3823.7,5.71526]
[1733327736829,1.6641,3824.8,3823.9,0.1]
[1733327737036,0.16641,3824.8,3824.3,0.1]
[1733327737188,1.6641,3825.5,3824.6,2.61463]
[1733327737607,1.6641,3825.5,3824.3,0.1]
[1733327737922,1.6641,3825.5,3824.6,2.61463]
[1733327738124,1.6641,3825.5,3824.3,0.1]
[1733327738125,1.6641,3825.5,3824.8,2.61448]
[1733327738333,1.6641,3825.5,3824.9,2.6144]
[1733327738519,0.16641,3825.4,3824.9,2.6144]
[1733327738828,0.16641,3825.4,3824.7,0.1]
[1733327739034,0.12641,3825.4,3825.0,2.61433]
[1733327739211,0.52735569,3825.2,3824.9,0.3]
[1733327739421,0.26872384,3825.9,3825.3,2.61414]
[1733327739587,0.26872384,3825.9,3825.1,0.1]
[1733327739588,0.26872384,3825.9,3825.1,2.61429]
[1733327739792,0.26872384,3825.9,3825.1,2.71429]
[1733327740110,0.5181561,3825.4,3825.2,2.61422]
[1733327740514,0.19241238,3825.8,3825.2,2.61422]
[1733327740515,0.19241238,3825.8,3825.3,3.0]
[1733327740729,0.26872384,3825.9,3825.6,2.61395]
[1733327740942,0.26872384,3825.9,3825.7,3.0]
[1733327741226,0.52516033,3825.8,3825.7,5.61386]
[1733327741720,0.26872384,3825.9,3825.7,5.71386]
[1733327742095,0.78525956,3825.9,3825.7,5.71386]
[1733327742942,0.78525956,3825.9,3825.7,0.1]
[1733327743147,0.78525956,3825.9,3825.7,3.1]
[1733327743818,0.78525956,3825.9,3825.5,0.1]
[1733327744145,0.78525956,3825.9,3825.1,2.61428]
[1733327744465,0.78525956,3825.9,3825.3,2.61416]
[1733327744917,0.55,3825.8,3825.2,2.71421]
[1733327745235,0.55,3825.6,3825.2,0.1]
[1733327745549,0.55,3825.6,3825.2,3.1]
[1733327745704,0.55,3825.6,3824.9,3.1]
[1733327745705,1.6612,3825.5,3824.9,3.1]
[1733327746033,1.6612,3825.5,3824.4,0.2]
[1733327746034,0.55,3825.4,3824.4,0.1]
[1733327746200,0.5278272,3825.0,3824.5,0.1]
[1733327746401,0.13352596,3825.7,3825.3,0.1]
[1733327746641,0.55,3825.6,3825.3,0.1]
[1733327746932,0.53190349,3825.5,3825.3,0.1]
[1733327747170,0.55,3825.4,3824.8,0.1]
[1733327747769,0.55,3825.4,3824.9,2.61443]
[1733327748036,0.53190349,3825.5,3825.3,2.61414]
[1733327748246,0.53190349,3825.5,3825.3,2.81414]
[1733327748403,1.5227,3826.1,3825.4,0.1]
[1733327748602,1.5227,3826.1,3825.5,2.61401]
[1733327749102,1.5227,3826.1,3825.4,0.1]
[1733327749103,0.44786622,3825.9,3825.4,0.1]
[1733327749301,0.55,3825.8,3824.9,3.0]
[1733327749514,3.16384,3825.8,3824.5,0.3]
[1733327749718,0.55,3825.5,3824.6,3.0]
[1733327749928,0.55,3825.5,3824.5,2.9147]
[1733327749929,0.74779051,3825.5,3824.5,2.9147]
[1733327750145,0.74779051,3825.5,3824.5,0.3]
[1733327750344,0.74779051,3825.5,3824.5,2.9147]
[1733327750855,0.74779051,3825.5,3824.7,2.61456]
[1733327751055,0.74779051,3825.5,3824.5,2.91471]
[1733327751427,0.74779051,3825.5,3824.7,3.0]
[1733327751727,0.74779051,3825.5,3824.5,0.3]
[1733327752115,0.74779051,3825.5,3824.8,2.6145]
[1733327752317,0.52821115,3824.9,3824.7,0.1]
[1733327753328,0.19779051,3825.5,3825.4,2.8141]
[1733327753963,0.19779051,3825.5,3825.0,5.257546]
[1733327754130,0.19779051,3825.5,3825.1,1.5431]
[1733327754329,0.19779051,3825.5,3825.4,2.6141]
[1733327755060,0.74779051,3825.5,3825.1,2.61425]
[1733327755276,0.19779051,3825.5,3825.4,2.6141]